fUST/lending_fUST_20250309
["ID","MTS","AMOUNT","RATE_DAILY","PERIOD"]
[355707187,1741488638463,-500.0,0.00046189,2]
[355707188,1741488638473,-487.34634882,0.00046189,2]
[355707189,1741488638483,-500.0,0.00046189,2]
[355707190,1741488638493,-500.0,0.00046189,2]
[355707191,1741488638503,-500.0,0.00046189,2]
[355707192,1741488638512,-500.0,0.00046189,120]
[355707193,1741488638522,-500.0,0.00046189,2]
[355707194,1741488638531,-500.0,0.00046189,120]
[355707195,1741488638541,-500.0,0.00046189,2]
[355707196,1741488638551,-47.64064937,0.00046189,2]
[355707197,1741488638758,-359.18880825,0.00046189,2]
[355707227,1741488640758,-93.17054238,0.00046189,2]
[355707229,1741488640768,-500.0,0.00046189,120]
[355707231,1741488640778,-500.0,0.00046189,2]
[355707233,1741488640787,-541.5675037,0.00046189,120]
[355707235,1741488640797,-191.95205041,0.00046189,2]
[355707237,1741488640806,-275.43807709,0.00046189,120]
[355707432,1741488643593,-65.40028236,0.00046189,120]
[355707433,1741488643603,-8177.88880364,0.0004619,45]
[355707473,1741488646425,-193.41204244,0.0004619,45]
[355707474,1741488646435,-2101.7524451,0.0004619,45]
[355707481,1741489535122,-174.420519,0.0003589,2]
[355707482,1741489535145,-217.3803244,0.00039871,2]
[355707483,1741489535168,-708.14757762,0.000399,8]
[355707484,1741489535195,-804.18823854,0.00041877,2]
[355707485,1741489629096,-49.72059546,0.00041877,2]
[355707486,1741489629120,-684.54265854,0.000419,9]
[355707487,1741489629143,-550.0,0.00041925,5]
[355707488,1741489629166,-2868.29580268,0.00041926,2]
[355707489,1741489632121,-930.93017762,0.00041926,2]
[355707490,1741489632143,-416.66666667,0.0004409,2]
[355707491,1741489632166,-182.53982222,0.0004409,2]
[355707492,1741489632189,-422.0,0.0004463,5]
[355707493,1741489632214,-649.8585281,0.00045875,2]
[355707494,1741489632237,-151.82893964,0.0004589,120]
[355707495,1741489632259,-1353.48049181,0.00046,120]
[355707496,1741489636076,-1948.91598815,0.00046,120]
[355707497,1741489644084,-2047.94894853,0.00046,120]
[355707498,1741489799562,461.57255693,0.000439,2]
[355707499,1741489803358,156.50625,0.00041156,14]
[355707500,1741489804395,167.0055,0.00041156,14]
[355707512,1741489832732,-688.88531066,0.000459,10]
[355707514,1741489832742,-2324.53713863,0.0004598,28]
[355707515,1741489832752,-211.79864579,0.00045989,2]
[355707517,1741489832763,-6215.73386255,0.00046,120]
[355707519,1741489832772,-600.0,0.00046062,2]
[355707520,1741489832782,-253.36,0.0004607,30]
[355707522,1741489832792,-500.0,0.0004607,5]
[355707523,1741489832801,-500.0,0.00046078,2]
[355707525,1741489832811,-500.0,0.00046078,120]
[355707526,1741489832820,-500.0,0.00046078,120]
[355707527,1741489832830,-500.0,0.00046078,2]
[355707528,1741489832840,-500.0,0.00046078,120]
[355707529,1741489832850,-500.0,0.00046078,2]
[355707530,1741489832859,-500.0,0.00046078,120]
[355707531,1741489832869,-500.0,0.00046078,120]
[355707532,1741489832878,-206.79123668,0.00046078,120]
[355707533,1741489832888,-500.0,0.00046078,2]
[355707534,1741489832898,-500.0,0.00046078,2]
[355707535,1741489832907,-179.5537791,0.00046078,120]
[355707536,1741489832930,-500.0,0.00046078,2]
[355707537,1741489832943,-271.86523286,0.00046078,2]
[355707538,1741489832953,-282.3963893,0.00046078,120]
[355707539,1741489832964,-212.07746683,0.00046079,31]
[355707540,1741489832974,-447.26339822,0.00046079,120]
[355707541,1741489832984,-569.80934733,0.00046079,45]
[355707571,1741489838595,-310.15338169,0.00046079,45]
[355707675,1741489840853,-2249.16612789,0.00046079,45]
[355707691,1741489843782,-8177.88880364,0.00046055,15]
[355707692,1741489843886,-4893.95367589,0.00046055,15]
[355707701,1741489844424,-1.7946142,0.00046055,15]
[355707731,1741489846632,-2385.27305368,0.00046055,15]
[355707733,1741489846739,-3596.60669562,0.00046055,15]
[355707741,1741490741224,-362.42066768,0.00035,2]
[355707742,1741490741247,-172.010342,0.0003589,2]
[355707743,1741490741268,-404.15846349,0.00038667,2]
[355707745,1741490833298,-332.71792024,0.00030519,2]
[355707746,1741490833319,-519.69699951,0.00038667,2]
[355707747,1741490833341,-801.31935156,0.00038801,2]
[355707748,1741490833362,-724.43591321,0.000389,8]
[355707749,1741490833384,-171.97228255,0.0003899,114]
[355707750,1741490833406,-400.0,0.00039089,5]
[355707751,1741490833427,-197.83841278,0.0003909,2]
[355707752,1741490834095,-5450.40167133,0.0003909,2]
[355707753,1741490847111,-4050.56213812,0.0003909,2]
[355707754,1741490865163,160.0,0.0003,7]
[355707756,1741490919545,777.49027982,0.00022,2]
[355707757,1741490950089,-400.0,0.00036999,2]
[355707758,1741490950112,-19102.12470126,0.00037,5]
[355707759,1741490950134,-700.28804933,0.000379,8]
[355707760,1741490950155,-301.19777777,0.0003909,2]
[355707761,1741490950175,-161.0835,0.00039387,14]
[355707762,1741490950196,-600.0,0.00039554,2]
[355707763,1741490950217,-202.0,0.00039578,2]
[355707764,1741490950236,-1285.13966115,0.00039578,2]
[355707765,1741490951087,-2018.61088615,0.00039578,2]
[355707766,1741490951109,-560.0,0.00039589,5]
[355707767,1741490951131,-2378.31740902,0.00039785,2]
[355707768,1741490951152,-375.95088105,0.00039873,2]
[355707769,1741490951172,-510.54871698,0.00039873,5]
[355707770,1741490951194,-500.0,0.00039873,5]
[355707771,1741490951217,-332.70446346,0.00039884,31]
[355707772,1741490951239,-500.0,0.00039884,31]
[355707773,1741490951260,-500.0,0.00039884,2]
[355707774,1741490951282,-500.0,0.00039884,31]
[355707775,1741490951302,-245.40871748,0.00039884,31]
[355707776,1741490951324,-500.0,0.00039884,31]
[355707777,1741490951347,-500.0,0.00039884,2]
[355707778,1741490951369,-500.0,0.00039884,31]
[355707779,1741490951391,-500.0,0.00039884,31]
[355707780,1741490951412,-500.0,0.00039884,2]
[355707781,1741490951434,-500.0,0.00039884,31]
[355707782,1741490951456,-500.0,0.00039884,2]
[355707783,1741490951478,-500.0,0.00039884,31]
[355707784,1741490951501,-500.0,0.00039884,2]
[355707785,1741490951523,-500.0,0.00039884,31]
[355707786,1741490951545,-500.0,0.00039884,31]
[355707787,1741490951566,-500.0,0.00039884,31]
[355707788,1741490951590,-500.0,0.00039884,2]
[355707789,1741490951610,-500.0,0.00039884,31]
[355707790,1741490951634,-414.01008054,0.00039884,31]
[355707791,1741490951656,-500.0,0.00039884,2]
[355707792,1741490951678,-269.18339022,0.00039884,31]
[355707793,1741490951702,-500.0,0.00039884,2]
[355707794,1741490951723,-500.0,0.00039884,31]
[355707795,1741490951746,-500.0,0.00039884,31]
[355707796,1741490951768,-500.0,0.00039884,2]
[355707797,1741490951789,-500.0,0.00039884,31]
[355707798,1741490951813,-500.0,0.00039884,2]
[355707799,1741490951835,-500.0,0.00039884,31]
[355707800,1741490951857,-500.0,0.00039884,31]
[355707801,1741490951878,-500.0,0.00039884,2]
[355707802,1741490951899,-500.0,0.00039884,31]
[355707803,1741490951921,-500.0,0.00039884,31]
[355707804,1741490951943,-500.0,0.00039884,31]
[355707805,1741490951968,-500.0,0.00039884,2]
[355707806,1741490951991,-1.413488,0.00039884,31]
[355707807,1741490958150,-498.586512,0.00039884,31]
[355707808,1741490958174,-500.0,0.00039884,2]
[355707809,1741490958197,-500.0,0.00039884,31]
[355707810,1741490958220,-500.0,0.00039884,31]
[355707811,1741490958245,-500.0,0.00039884,2]
[355707812,1741490958267,-500.0,0.00039884,31]
[355707813,1741490958289,-500.0,0.00039884,2]
[355707814,1741490958312,-363.78571569,0.00039884,2]
[355707815,1741490958344,-136.21428431,0.00039884,2]
[355707816,1741490958366,-500.0,0.00039884,2]
[355707817,1741490958388,-500.0,0.00039884,31]
[355707818,1741490958410,-500.0,0.00039884,31]
[355707819,1741490958432,-459.98004137,0.00039884,31]
[355707820,1741490958455,-500.0,0.00039884,2]
[355707821,1741490958477,-500.0,0.00039884,2]
[355707822,1741490958499,-500.0,0.00039884,31]
[355707823,1741490958523,-188.32644658,0.00039884,2]
[355707824,1741490958551,-311.67355342,0.00039884,2]
[355707825,1741490958574,-500.0,0.00039884,2]
[355707826,1741490958597,-500.0,0.00039884,31]
[355707827,1741490958620,-500.0,0.00039884,31]
[355707828,1741490958650,-500.0,0.00039884,2]
[355707829,1741490958675,-500.0,0.00039884,2]
[355707830,1741490958697,-500.0,0.00039884,31]
[355707831,1741490958723,-500.0,0.00039884,2]
[355707832,1741490958745,-500.0,0.00039884,31]
[355707833,1741490958768,-500.0,0.00039884,31]
[355707834,1741490958797,-500.0,0.00039884,2]
[355707835,1741490958819,-500.0,0.00039884,2]
[355707836,1741490958841,-500.0,0.00039884,31]
[355707837,1741490958866,-500.0,0.00039884,2]
[355707838,1741490958888,-500.0,0.00039884,2]
[355707839,1741490958910,-500.0,0.00039884,31]
[355707840,1741490958936,-500.0,0.00039884,2]
[355707841,1741490958960,-500.0,0.00039884,2]
[355707842,1741490958983,-500.0,0.00039884,2]
[355707843,1741490959005,-500.0,0.00039884,31]
[355707844,1741490959030,-500.0,0.00039884,2]
[355707845,1741490959052,-500.0,0.00039884,2]
[355707846,1741490959076,-500.0,0.00039884,2]
[355707847,1741490959100,-500.0,0.00039884,2]
[355707848,1741490959125,-500.0,0.00039884,2]
[355707849,1741490959150,-500.0,0.00039884,2]
[355707850,1741490959174,-500.0,0.00039884,2]
[355707851,1741490959198,-500.0,0.00039884,2]
[355707852,1741490959221,-500.0,0.00039884,2]
[355707853,1741490959245,-500.0,0.00039884,2]
[355707854,1741490959268,-500.0,0.00039884,2]
[355707855,1741490959291,-500.0,0.00039884,2]
[355707856,1741490959319,-500.0,0.00039884,2]
[355707857,1741490959344,-500.0,0.00039884,2]
[355707858,1741490959367,-500.0,0.00039884,2]
[355707859,1741490959391,-500.0,0.00039884,2]
[355707860,1741490959414,-500.0,0.00039884,2]
[355707861,1741490959438,-500.0,0.00039884,2]
[355707862,1741490959461,-500.0,0.00039884,2]
[355707863,1741490959483,-500.0,0.00039884,2]
[355707864,1741490959506,-500.0,0.00039884,2]
[355707865,1741490959528,-568.60625617,0.00039884,2]
[355707866,1741490959550,-500.0,0.00039884,2]
[355707867,1741490959573,-500.0,0.00039884,2]
[355707868,1741490959596,-500.0,0.00039884,2]
[355707869,1741490959620,-500.0,0.00039884,2]
[355707870,1741490959735,-500.0,0.00039884,2]
[355707871,1741490959766,-500.0,0.00039884,2]
[355707872,1741490959789,-500.0,0.00039884,2]
[355707873,1741490959812,-613.33703544,0.00039884,2]
[355707874,1741490959836,-500.0,0.00039884,2]
[355707875,1741490959859,-500.0,0.00039884,2]
[355707876,1741490959882,-500.0,0.00039884,2]
[355707877,1741490959904,-500.0,0.00039884,2]
[355707878,1741490959926,-500.0,0.00039884,2]
[355707879,1741490959948,-500.0,0.00039884,2]
[355707880,1741490959970,-500.0,0.00039884,2]
[355707881,1741490959993,-500.0,0.00039884,2]
[355707882,1741490960017,-500.0,0.00039884,2]
[355707883,1741490960040,-500.0,0.00039884,2]
[355707884,1741490960064,-500.0,0.00039884,2]
[355707885,1741490960086,-500.0,0.00039884,2]
[355707886,1741490960109,-500.0,0.00039884,2]
[355707887,1741490960133,-500.0,0.00039884,2]
[355707888,1741490960156,-500.0,0.00039884,2]
[355707889,1741490960180,-500.0,0.00039884,2]
[355707890,1741490960202,-500.0,0.00039884,2]
[355707891,1741490960226,-500.0,0.00039884,2]
[355707892,1741490960250,-500.0,0.00039884,2]
[355707893,1741490960272,-500.0,0.00039884,2]
[355707894,1741490960295,-500.0,0.00039884,2]
[355707895,1741490960318,-500.0,0.00039884,2]
[355707896,1741490960341,-500.0,0.00039884,2]
[355707897,1741490960364,-500.0,0.00039884,2]
[355707898,1741490960386,-500.0,0.00039884,2]
[355707899,1741490960409,-500.0,0.00039884,2]
[355707900,1741490960432,-500.0,0.00039884,2]
[355707901,1741490960455,-500.0,0.00039884,2]
[355707902,1741490960478,-445.82454196,0.00039884,2]
[355707903,1741490960501,-500.0,0.00039884,2]
[355707904,1741490960523,-500.0,0.00039884,2]
[355707905,1741490960546,-500.0,0.00039884,2]
[355707906,1741490960568,-500.0,0.00039884,2]
[355707907,1741490960590,-500.0,0.00039884,2]
[355707908,1741490960610,-151.0,0.00039885,14]
[355707909,1741490960636,-151.0,0.00039885,14]
[355707910,1741490960655,-151.0,0.00039885,14]
[355707911,1741490960676,-203.255584,0.00039885,14]
[355707912,1741490960696,-250.0,0.00039886,2]
[355707913,1741490960717,-524.61252909,0.00039984,2]
[355707914,1741490960740,-622.2,0.00040102,2]
[355707915,1741490960763,-813.72104228,0.00040256,2]
[355707916,1741490960783,-196.293138,0.00040272,2]
[355707917,1741490960807,-813.72104228,0.00040284,2]
[355707918,1741490960829,-813.72104228,0.00040601,2]
[355707919,1741490960850,-645.2214,0.0004065,2]
[355707920,1741490960873,-293.60726976,0.00040858,2]
[355707921,1741490960893,-162.0,0.00041,14]
[355707922,1741490960914,-813.72104228,0.00041074,2]
[355707923,1741490960935,-669.0945918,0.00041198,2]
[355707924,1741490960956,-813.72104228,0.00041342,2]
[355707925,1741490960977,-813.72104228,0.00041527,2]
[355707926,1741490960998,-693.8510917,0.00041746,2]
[355707927,1741490961019,-813.72104228,0.0004183,2]
[355707928,1741490961039,-813.72104228,0.00041931,2]
[355707929,1741490961060,-2131.0,0.00042,120]
[355707930,1741490961080,-152.53,0.00042054,120]
[355707931,1741490961100,-500.0,0.00042055,42]
[355707932,1741490961121,-719.52358209,0.00042294,2]
[355707933,1741490961141,-151.0,0.00042294,120]
[355707934,1741490961161,-316.0,0.0004236,5]
[355707935,1741490961183,-813.72104228,0.00042464,2]
[355707936,1741490961203,-813.72104228,0.00042498,2]
[355707937,1741490961223,-746.14595463,0.00042842,2]
[355707938,1741490961243,-813.72104228,0.00042984,2]
[355707939,1741490961264,-813.72104228,0.00043016,2]
[355707940,1741490961287,-151.0,0.00043057,120]
[355707941,1741490961309,-151.0,0.00043057,120]
[355707942,1741490961331,-151.0,0.00043057,120]
[355707943,1741490961352,-151.0,0.00043057,120]
[355707944,1741490961374,-151.0,0.00043057,120]
[355707945,1741490961395,-151.0,0.00043057,120]
[355707946,1741490961416,-151.0,0.00043057,120]
[355707947,1741490961436,-151.0,0.00043057,120]
[355707948,1741490961458,-171.169482,0.00043057,120]
[355707949,1741490961478,-500.0,0.00043073,10]
[355707950,1741490961499,-504.33868732,0.00043073,10]
[355707951,1741490961519,-773.75335495,0.0004339,2]
[355707952,1741490961539,-813.72104228,0.00043482,2]
[355707953,1741490961559,-813.72104228,0.00043763,2]
[355707954,1741490961579,-19435.7988957,0.00043862,3]
[355707955,1741490961600,-217.03023147,0.00043872,2]
[355707956,1741490961619,-500.0,0.00043872,5]
[355707957,1741490961646,-802.38222908,0.00043938,2]
[355707958,1741490961666,-152.384778,0.00043967,120]
[355707959,1741490961686,-151.0,0.00043967,120]
[355707960,1741490961707,-151.0,0.00043971,120]
[355707961,1741490961728,-151.0,0.00043972,120]
[355707962,1741490961748,-151.0,0.00043972,120]
[355707963,1741490961769,-151.0,0.00043972,120]
[355707964,1741490961789,-154.584583,0.00043972,120]
[355707965,1741490961810,-155.82975,0.00043972,120]
[355707966,1741490961831,-500.0,0.00043973,10]
[355707967,1741490961852,-500.0,0.00043973,10]
[355707968,1741490961873,-999.0,0.00043976,120]
[355707969,1741490961894,-151.0,0.00043977,120]
[355707970,1741490961915,-151.0,0.00043977,120]
[355707971,1741490961935,-151.0,0.00043977,120]
[355707972,1741490961955,-151.0,0.00043977,120]
[355707973,1741490961975,-151.0,0.00043977,120]
[355707974,1741490961995,-151.0,0.00043977,120]
[355707975,1741490962016,-151.0,0.00043977,120]
[355707976,1741490962037,-151.0,0.00043977,120]
[355707977,1741490962057,-151.0,0.00043977,120]
[355707978,1741490962077,-200.694365,0.00043977,120]
[355707979,1741490962097,-1069.2996772,0.00043978,2]
[355707980,1741490962118,-2131.0,0.00044,120]
[355707981,1741490962139,-507.14862424,0.00044033,7]
[355707982,1741490962160,-500.0,0.00044033,10]
[355707983,1741490962180,-5395.91273743,0.00044062,2]
[355707984,1741490962240,-500.0,0.00039884,2]
[355707985,1741490962265,-500.0,0.00039884,2]
[355707986,1741490962287,-500.0,0.00039884,2]
[355707987,1741490962310,-500.0,0.00039884,2]
[355707988,1741490962429,-500.0,0.00039884,2]
[355707989,1741490962473,-250.00000001,0.00039884,2]
[355707990,1741490964803,151.0,0.00039885,14]
[355707991,1741490965196,151.0,0.00039885,14]
[355707992,1741490965566,151.0,0.00039885,14]
[355707993,1741490965956,151.0,0.00039885,14]
[355707994,1741490966980,151.0,0.00039885,14]
[355707995,1741490967368,151.0,0.00039885,14]
[355707996,1741490967698,151.0,0.00039885,14]
[355707997,1741490968086,151.0,0.00039885,14]
[355707998,1741490968502,151.0,0.00039885,14]
[355707999,1741490968787,151.0,0.00039886,14]
[355708000,1741490969148,151.0,0.00039885,14]
[355708001,1741490969530,151.0,0.00039885,14]
[355708002,1741490969833,151.0,0.00039885,14]
[355708003,1741490970138,151.0,0.00039885,14]
[355708004,1741490970480,151.0,0.00039885,14]
[355708005,1741490970867,151.0,0.00039885,14]
[355708006,1741490971262,1.28401385,0.00039885,14]
[355708007,1741490971283,149.71598615,0.00039885,14]
[355708008,1741490971662,190.766308,0.00039885,14]
[355708014,1741491004828,712.86645147,0.00041762,2]
[355708015,1741491008892,600.0,0.0003986,2]
[355708016,1741491009551,622.2,0.00040408,2]
[355708017,1741491010196,645.2214,0.00040956,2]
[355708018,1741491010851,355.54248062,0.00041504,2]
[355708019,1741491010874,313.55211118,0.00041504,2]
[355708020,1741491011496,693.8510917,0.00042052,2]
[355708021,1741491012142,719.52358209,0.000426,2]
[355708055,1741491032096,-746.14595463,0.00043148,2]
[355708057,1741491032106,-773.75335495,0.00043696,2]
[355708059,1741491032116,-151.0,0.00043952,2]
[355708061,1741491032126,-213.83720524,0.00044062,2]
[355708064,1741491032138,-214.18891233,0.00044062,2]
[355708065,1741491032147,-153.418563,0.00044152,120]
[355708066,1741491032157,-151.0,0.00044152,120]
[355708067,1741491032167,-153.811238,0.00044152,120]
[355708068,1741491032176,-802.38222908,0.00044244,2]
[355708069,1741491032186,-151.0,0.00044253,120]
[355708070,1741491032195,-151.0,0.00044253,120]
[355708071,1741491032205,-158.799149,0.00044253,120]
[355708072,1741491032214,-159.137805,0.00044253,120]
[355708073,1741491032223,-5330.96295864,0.00044722,2]
[355708074,1741491032233,-1270.69282602,0.00044722,2]
[355708075,1741491032243,-813.72104228,0.00044957,2]
[355708076,1741491032252,-177.0,0.00045,90]
[355708077,1741491032262,-813.72104228,0.00045354,2]
[355708078,1741491032272,-503.30042388,0.00045519,10]
[355708079,1741491032282,-171.97228254,0.00045627,120]
[355708080,1741491032291,-813.72104228,0.00045694,2]
[355708081,1741491032301,-2269.0452709,0.00045853,4]
[355708082,1741491032312,-813.72104228,0.00045903,2]
[355708083,1741491032324,-179.18,0.0004598,2]
[355708084,1741491032334,-13496.93854683,0.0004599,4]
[355708123,1741491037948,-2862.92,0.0004599,4]
[355708129,1741491038005,-3075.94034887,0.0004599,4]
[355708131,1741491038015,-179.18,0.0004599,2]
[355708133,1741491038025,-372.17805655,0.00046,2]
[355708227,1741491042903,-177.0,0.00045,90]
[355708228,1741491042915,-635.97467705,0.00046,2]
[355708229,1741491042927,-2953.11789792,0.00046,2]
[355708230,1741491042938,-2131.0,0.00046,120]
[355708231,1741491042949,-151.0,0.00046062,120]
[355708232,1741491042960,-151.0,0.00046062,120]
[355708233,1741491042970,-151.0,0.00046069,120]
[355708234,1741491042980,-151.0,0.00046069,120]
[355708235,1741491042991,-154.132854,0.00046069,120]
[355708236,1741491043001,-151.0,0.0004607,110]
[355708237,1741491043011,-151.0,0.0004607,120]
[355708238,1741491043022,-171.529744,0.00046079,120]
[355708239,1741491043031,-151.0,0.00046079,120]
[355708240,1741491043046,-153.82152,0.00046079,120]
[355708241,1741491043059,-151.0,0.00046079,120]
[355708242,1741491043073,-151.0,0.00046079,120]
[355708243,1741491043085,-151.0,0.00046079,120]
[355708244,1741491043097,-151.0,0.00046079,120]
[355708245,1741491043109,-151.0,0.00046079,120]
[355708246,1741491043120,-151.0,0.00046079,120]
[355708247,1741491043130,-150.0,0.00046079,30]
[355708248,1741491043140,-151.0,0.0004608,120]
[355708249,1741491043149,-151.0,0.0004608,110]
[355708250,1741491043159,-151.0,0.0004608,110]
[355708251,1741491043182,-151.0,0.0004608,110]
[355708252,1741491043193,-151.0,0.0004608,120]
[355708253,1741491043203,-151.0,0.0004608,120]
[355708254,1741491043214,-190.986443,0.0004608,120]
[355708255,1741491043224,-151.0,0.0004608,120]
[355708256,1741491043235,-151.0,0.0004608,120]
[355708257,1741491043245,-151.0,0.0004608,120]
[355708258,1741491043255,-151.0,0.0004608,120]
[355708259,1741491043266,-151.0,0.0004608,120]
[355708260,1741491043276,-151.0,0.0004608,120]
[355708261,1741491043286,-151.0,0.0004608,120]
[355708262,1741491043296,-203.350796,0.0004608,120]
[355708263,1741491043306,-151.0,0.0004609,120]
[355708264,1741491043316,-157.090016,0.0004609,120]
[355708265,1741491043327,-152.676256,0.0004609,120]
[355708266,1741491043337,-151.0,0.0004609,120]
[355708267,1741491043347,-154.443456,0.0004609,120]
[355708268,1741491043357,-151.0,0.0004609,120]
[355708269,1741491043367,-267.435157,0.0004609,110]
[355708270,1741491043377,-192.384033,0.0004609,120]
[355708271,1741491043387,-151.0,0.0004609,120]
[355708272,1741491043398,-217.03023147,0.000461,2]
[355708273,1741491043408,-179.18,0.00046162,2]
[355708274,1741491043419,-798.64140422,0.00046172,45]
[355708293,1741491083668,204.0416411,0.00040377,2]
[355708294,1741491095167,194.83552688,0.0004166,42]
[355708295,1741491095192,205.16447312,0.0004166,42]
[355708296,1741491157277,20950.83,0.0003,2]
[355708303,1741491303123,6735.60777631,0.00021,2]
[355708305,1741491827113,151.0,0.0003,2]
[355708308,1741491945120,-1351.39439333,0.00032119,2]
[355708309,1741491945143,-172.010342,0.0003589,2]
[355708310,1741491945164,-442.45756927,0.000359,7]
[355708311,1741492015087,-206.90415627,0.000359,7]
[355708312,1741492025082,-51.54130359,0.000359,7]
[355708313,1741492025103,-3089.3257461,0.0003651,2]
[355708314,1741492025126,-214.14902531,0.00039785,2]
[355708315,1741492030153,-424.39863734,0.00039785,2]
[355708316,1741492032137,-216.80679897,0.00039785,2]
[355708317,1741492034117,-1326.69540621,0.00039785,2]
[355708318,1741492034142,-400.0,0.00039798,5]
[355708319,1741492034165,-500.0,0.00039799,31]
[355708320,1741492034189,-153.42460191,0.00039799,2]
[355708321,1741492052103,-346.57539809,0.00039799,2]
[355708322,1741492052129,-500.0,0.00039799,2]
[355708323,1741492052153,-606.66444904,0.00039799,31]
[355708324,1741492052176,-500.0,0.00039799,31]
[355708325,1741492052199,-500.0,0.00039799,2]
[355708326,1741492052225,-500.0,0.00039799,2]
[355708327,1741492052247,-500.0,0.00039799,31]
[355708328,1741492052270,-500.0,0.00039799,2]
[355708329,1741492052293,-500.0,0.00039799,2]
[355708330,1741492052316,-500.0,0.00039799,31]
[355708331,1741492052337,-500.0,0.00039799,31]
[355708332,1741492052360,-161.96388723,0.00039799,2]
[355708333,1741492145187,-2208.1409427,0.00036425,2]
[355708334,1741492145210,-422.966321,0.00036748,2]
[355708335,1741492145232,-677.53959499,0.000379,8]
[355708336,1741492145261,-166.65383098,0.00039699,118]
[355708337,1741492145282,-166.66666666,0.00039699,2]
[355708338,1741492145305,-400.0,0.00039798,5]
[355708339,1741492145328,-338.03611277,0.00039799,2]
[355708340,1741492145353,-543.14978041,0.00039799,31]
[355708341,1741492145379,-500.0,0.00039799,2]
[355708342,1741492145402,-500.0,0.00039799,2]
[355708343,1741492145427,-500.0,0.00039799,2]
[355708344,1741492145449,-576.91833902,0.00039799,31]
[355708345,1741492145472,-500.0,0.00039799,2]
[355708346,1741492145497,-500.0,0.00039799,2]
[355708347,1741492145523,-500.0,0.00039799,2]
[355708348,1741492145547,-500.0,0.00039799,2]
[355708349,1741492145570,-500.0,0.00039799,2]
[355708350,1741492145594,-500.0,0.00039799,2]
[355708351,1741492145618,-500.0,0.00039799,2]
[355708352,1741492145641,-395.91604363,0.00039799,2]
[355708353,1741492145666,-500.0,0.00039799,2]
[355708354,1741492145689,-500.0,0.00039799,2]
[355708355,1741492145713,-500.0,0.00039799,2]
[355708356,1741492145743,-500.0,0.00039799,2]
[355708357,1741492145769,-500.0,0.00039799,2]
[355708358,1741492145795,-500.0,0.00039799,2]
[355708359,1741492145822,-500.0,0.00039799,2]
[355708360,1741492145845,-24900.0,0.000398,2]
[355708361,1741492145870,-505.57002045,0.000398,5]
[355708362,1741492145892,-500.0,0.000398,5]
[355708363,1741492145915,-605.5792531,0.00040408,2]
[355708364,1741492145937,-157.0,0.00041,14]
[355708365,1741492145961,-250.0,0.00041119,2]
[355708366,1741492145985,-189.081049,0.00041248,2]
[355708367,1741492146011,-1229.623947,0.00041309,2]
[355708371,1741492204430,500.0,0.00039799,31]
[355708372,1741492204459,500.0,0.00039799,31]
[355708373,1741492204487,500.0,0.00039799,31]
[355708374,1741492204512,500.0,0.00039799,31]
[355708375,1741492204538,518.45426969,0.00039799,31]
[355708376,1741492204565,214.93854082,0.00039799,31]
[355708377,1741492208818,527.13492838,0.00039776,2]
[355708378,1741492208839,72.86507162,0.00039776,2]
[355708379,1741492209476,667.96858777,0.00040324,2]
[355708380,1741492210221,1275.97357353,0.000377,2]